{"text_format":"2","workbook":"xlsx","n_sheets":4,"sheets":["1. RK.","2. RK","3. RK.","4.RK."],"not_rendered":{"charts":0,"images":0,"macros":0,"external_links":0,"defined_names":0,"comments":0,"pivot_tables":0},"unopened":[],"bounds":{"document_bytes":16777216,"sheet_cells":100000,"run_cost":"one","rows_first":2000,"rows_last":500,"rows_between":2000,"halvings":0,"cell_chars":16384,"cell_head_chars":4096},"cells_cut":0,"cells_raw":0,"read":"whole","date_system":"1900"}

{"sheet":"1. RK.","index":0,"n_rows":64,"n_cols":5,"rows_kept":64,"cut":false,"hidden":false,"merged":[[0,1,0,2],[63,0,63,3]]}
["Megnevezés","mennyiség",null,"Egységár (nettó)","Összesen (nettó)"]
["FBS ragasztó 310ml-es ",5,"db",null,{"$f":"B2*D2","v":0}]
["Mamut ragasztó",10,"db",null,0]
["Piros-fehér jelölő szalag ",10,"db",null,0]
["Üvegező gitt ",20,"kg",null,0]
["Protect darázsírtó spray ",10,"db",null,0]
["Szárító vakolat (25kg)",10,"zsák",null,0]
["Gyorsbeton (25 kg)",5,"zsák",null,0]
["vakoló habarcs (25kg)",20,"zsák",null,0]
["Vízzáró vakolat (25kg)",5,"zsák",null,0]
["aljzat kiegyenlítő (25kg)",10,"zsák",null,0]
["Flexibilis csemperagasztó (25 kg)",10,"zsák",null,0]
["Glett Rimano Plus A (20kg)",30,"zsák",null,0]
["Tapadóhíd",10,"kg",null,0]
["Mélyalapozó",30,"L",null,0]
["Élvédő alu 20mm-es",100,"m",null,0]
["Glett Rimano Plus A ",30,"zsák",null,0]
["Öntap. hézagerősítő háló 20cm széleses ",15,"db",null,0]
["szövetsarok 10x15x250",20,"db",null,0]
["Repedésáthidaló üvegszálas vlies 10cmx50m",5,"db",null,0]
["öntapadó fugacsík 5cmx20m",5,"db",null,0]
["Trinát fehér alapozó festék ",40,"L",null,0]
["Trinát fehér zománc festék ",40,"L",null,0]
["Diszperziós falfesték beltéri fehér 10-15 l",20,"vödör",null,0]
["Lakkbenzin hígító",20,"L",null,0]
["Csiszolóvászon 60-as",20,"db",null,0]
["Csiszolóvászon 100-as",40,"db",null,0]
["Csiszolóvászon 140-as",20,"db",null,0]
["kézi csiszoló ",5,"db",null,0]
["Body Fine Kétkomponensű kitt ",1,"kg",null,0]
["Trinát mestertapasz",5,"kg",null,0]
["2\"-os ecset ",20,"db",null,0]
["1\"-os ecset",20,"db",null,0]
["mélyalapozó ecset 17,5x7,5",2,"db",null,{"$f":"B34*D34","v":0}]
["festőhenger rövid szőrű",20,"db",null,0]
["festőhenger rövid szőrű",20,"db",null,0]
["kicsi",10,"db",null,0]
["lehúzó",10,"db",null,0]
["festőhenger nyél nagy",5,"db",null,0]
["festőhenger nyél kicsi",3,"db",null,0]
["Akna purhab ",5,"db",null,0]
["Purhab",10,"db",null,0]
["ragasztóhab",5,"db",null,0]
["takarófólia",10,"db",null,0]
["takarófólia lépésálló",10,"db",null,0]
["festőszalag 20mm",20,"db",null,0]
["festőszalag 50mm",20,"db",null,0]
["habarcsvödör 20l",5,"db",null,0]
["építési vödör 12l",5,"db",null,0]
["zsák (sitt)",10,"csomag",null,0]
["szaniter szilikon fehér",15,"db",null,0]
["Szaniter szilikon átlátszó",15,"db",null,0]
["figyelmezetető ragasztószalag fekete sárga",3,"db",null,0]
["figyelmezetető ragasztószalag piros fehér",3,"db",null,0]
["glettvas kicsi",3,"db",null,0]
["glettvas közepes",3,"db",null,0]
["rozsdamaró",5,"l",null,0]
["kormofág",5,"l",null,0]
["jolly fix",15,"l",null,0]
["Szúnyogháló keret 25x30mm 3 m es szál",30,"db",null,0]
["Szúnyogháló keret sarokelem",100,"db",null,0]
["Szúnyogháló 140cmx30m",2,"tekercs",null,0]
["gumigréder",200,"m",null,0]
["összesen",null,null,null,{"$f":"SUM(E2:E63)","v":0}]

{"sheet":"2. RK","index":1,"n_rows":97,"n_cols":5,"rows_kept":97,"cut":false,"hidden":false,"merged":[[0,1,0,2],[96,0,96,3]]}
["Megnevezés","mennyiség",null,"Egységár (nettó)","Összesen (nettó)"]
["054365 csz. 2P+F Legrand Dugvilla",60,"db",null,{"$f":"D2*B2","v":0}]
["lengődugalj",30,"db",null,{"$f":"D3*B3","v":0}]
["kapcsolós dugvilla",10,"db",null,0]
["Falon kívüli  4 modulos kiselosztó",15,"db",null,0]
["Falon kívüli  8 modulos kiselosztó",10,"db",null,0]
["Falon kívüli  12modulos kiselosztó",5,"db",null,0]
["Falon kívüli  24 modulos kiselosztó",2,"db",null,0]
["Sülly.doboz D65mm sorolható",100,"db",null,0]
["Sülly.doboz D65mm kettős doboz",100,"db",null,0]
["Sülly.kötődoboz 100x100 mm fedéllel",40,"db",null,0]
["Sülly.kötődoboz 150x150 mm fedéllel",30,"db",null,0]
["80mm-es doboz tetővel ",50,"db",null,0]
["Mélyített 65mm-es doboz ",50,"db",null,0]
["80A 3p moduláris főkapcsoló ",1,"db",null,0]
["Kismegszakító 1p C 6A ",50,"db",null,0]
["Kismegszakító 1p C 10A ",50,"db",null,0]
["Kismegszakító 1p B 16A ",50,"db",null,0]
["Kismegszakító 1p C 16A ",100,"db",null,0]
["Kismegszakító 1p C 25A ",30,"db",null,0]
["Kismegszakító 1p C 32A ",30,"db",null,0]
["Kismegszakító 2p C 16A ",20,"db",null,0]
["Kismegszakító 2p C 32A ",10,"db",null,0]
["Fi relé 2p 25A 30mA ",10,"db",null,0]
["FI relé 2p 40A 30mA ",10,"db",null,0]
["Fi relé 4p 40A 30mA áramvédő kapcsoló",10,"db",null,0]
["12mod 3fázisú  villás fésűs sín ",10,"db",null,0]
["24 mod 3 Fázisú villás fésű sín",5,"db",null,0]
["12 mod 1 fázisú fésű sín",10,"db",null,0]
["24mod 1 fázisú fésű sín",10,"db",null,0]
["Fésűs sín végzáró",40,"db",null,0]
["Dupla süllyesztett dugalj 2x2p+f (Schneider Asfora v. Legrand Niole+keret) fehér",30,"db",null,0]
["Szimpla dugalj süllyesztett  2p+f(Schneider Asfora v. Legrand Niole+keret) fehér",60,"db",null,0]
["Szimpla dugalj süllyesztett  2p+f csapfedeles",15,"db",null,0]
["Szimpla dugalj csapfedeles IP védett",20,"db",null,0]
["2 es keret fehér",15,"db",null,0]
["3 -as keret fehér",15,"db",null,0]
["4 es keret fehér",10,"db",null,0]
["3x2,5mm2-es MMcu vezeték",200,"m",null,0]
["3x1,5mm2-es Mmcu vezeték ",200,"m",null,0]
["3x1,5 fehér (100) 300/500V hajlékony tömlővezeték (MT)",500,"m",null,0]
["3x2,5 fehér (100) 300/500V hajlékony tömlővezeték (MT)",500,"m",null,0]
["1x 1,5 fekete (100) 450/750V egyerű tömörvezeték (M-Cu, MCu)",200,"m",null,0]
["1x 1,5 kék (100) 450/750V egyerű tömörvezeték (M-Cu, MCu)",200,"m",null,0]
["1x 1,5 zöld-sárga (100) 450/750V egyerű tömörvezeték (M-Cu, MCu)",200,"m",null,0]
["1x 2,5 fekete (100) 450/750V egyerű tömörvezeték (M-Cu, MCu)",300,"m",null,0]
["1x 2,5 kék (100) 450/750V egyerű tömörvezeték (M-Cu, MCu)",300,"m",null,0]
["1x 2,5 zöld-sárga (100) 450/750V egyerű tömörvezeték (M-Cu, MCu)",300,"m",null,0]
["MKH vezeték zöld-sárga 1,5mm2-es",200,"m",null,0]
["MKH vezeték fekete 1,5mm2-es",200,"m",null,0]
["MKH vezeték kék 1,5mm2-es",200,"m",null,0]
["MKH vezeték zöld-sárga 2,5mm2-es",300,"m",null,0]
["MKH vezeték fekete 2,5mm2-es",300,"m",null,0]
["MKH vezeték kék 2,5mm2-es",300,"m",null,0]
["MKH vezeték zöld-sárga 4mm2-es",100,"m",null,0]
["MKH vezeték fekete 4mm2-es",100,"m",null,0]
["MKH vezeték kék 4mm2-es",100,"m",null,0]
["MKH vezeték zöld-sárga 10mm2-es",100,"m",null,0]
["MKH vezeték fekete 10mm2-es",100,"m",null,0]
["MKH vezeték kék 10mm2-es",100,"m",null,0]
["Érvéghüvely 1,5mm2-es ",500,"db",null,0]
["Érvéghüvely 2,5mm2-es ",500,"db",null,0]
["Érvéghüvely 4mm2-es ",300,"db",null,0]
["Érvéghüvely 10mm2-es ",100,"db",null,0]
["6-os tipli csavarral",300,"db",null,0]
["8-as tipli csavarral ",300,"db",null,0]
["MŰII. 20mm-es könyök",30,"db",null,{"$f":"D67*B67","v":0}]
["MŰII. 20mm-es cső",30,"szál",null,0]
["MŰII. 20mm-es bilincs ",100,"db",null,0]
["MŰII. 40mm-es könyök",20,"db",null,0]
["MŰII. 40mm-es cső",10,"szál",null,0]
["MŰII. 40mm-es bilincs ",100,"db",null,0]
["Bekötőkapocs 6-25mm2-es",40,"db",null,0]
["Wago 5-ös ",200,"db",null,0]
["Wago 4-as ",200,"db",null,0]
["Wago 3-as ",200,"db",null,0]
["Wago 2-as ",200,"db",null,0]
["Stukatúr gipsz",100,"kg",null,0]
["Led Izzó E27 10w",100,"db",null,0]
["Led Izzó E14 5,5 gömb",40,"db",null,0]
["Led Izzó E14 5,5 gyertya",40,"db",null,0]
["Izzó 60w E27",100,"db",null,0]
["Fénycső 36w T8",50,"db",null,0]
["Fénycső 18w LED ",20,"db",null,0]
["Fénycső 18w T8",30,"db",null,0]
["Fénycső gyújtó s-10",50,"db",null,0]
["Fénycső gyújtó s-20",50,"db",null,0]
["Szigetelő szalag kék",50,"tekercs",null,0]
["Szigetelő szalag fekete",50,"tekercs",null,0]
["Szigetelő szalag fehér",50,"tekercs",null,0]
["Szigetelő szalag z-s",50,"tekercs",null,0]
["5x16 mm2 MT kábel",18,"m",null,0]
["D63mm közműcső",8,"m",null,0]
["PG 36os tömszelence anyával",5,"db",null,0]
["Kábelsaru 16mm2- es kábelhez",10,"db",null,0]
["NKI késes biztosító betét 63A",3,"db",null,0]
["összesen",null,null,null,{"$f":"SUM(E2:E96)","v":0}]

{"sheet":"3. RK.","index":2,"n_rows":44,"n_cols":5,"rows_kept":44,"cut":false,"hidden":false,"merged":[[0,1,0,2],[43,0,43,3]]}
["Megnevezés","mennyiség",null,"Egységár (nettó)","Összesen (nettó)"]
["Csapfelsőrész 1/2\" ",50,"db",null,{"$f":"B2*D2","v":0}]
["Ricni",100,"db",null,0]
["Csapgomb kék",40,"db",null,0]
["Csapgomb piros ",40,"db",null,0]
["Zuhany tusfej ",20,"db",null,0]
["Zuhany gégecső 150cm-es ",30,"db",null,0]
["Mosogató fali csaptelep karos (Mofém)- orvosi karos",10,"db",null,0]
["Mosogató csaptelep (mosogatóra ültethető) (Mofém) Orvosi Karos",10,"db",null,0]
["Csaptelep álló (Mofém) - orvosi karos",10,"db",null,0]
["Csaptelep álló (Mofém) - karos",10,"db",null,0]
["Sarokszelep 1/2\"-3/8\"",15,"db",null,0]
["Sarokszelep 1/2\"-1/2\"",15,"db",null,0]
["Wc ülőke (erős) ",5,"db",null,0]
["Flexibilis bekötőcső vízre 40cm-es 1/2\" BB ",15,"db",null,0]
["Flexibilis bekötőcső vízre 30cm-es 1/2\" BB ",15,"db",null,0]
["Flexibilis bekötőcső vízre 30cm-es 1/2\" BK ",15,"db",null,0]
["Flexibilis bekötőcső vízre 40cm-es 1/2\" BK ",15,"db",null,0]
["Kerticsap 3/4\"-os",10,"db",null,0]
["Mofém golyóscsap 1/2\" bb",10,"db",null,0]
["Mofém golyóscsap 1/2\" bk",10,"db",null,0]
["Mofém golyóscsap 3/4\" bb",10,"db",null,0]
["Mofém golyóscsap 3/4\" bk",10,"db",null,0]
["Mofém golyóscsap 1\" bb",10,"db",null,0]
["Mofém golyóscsap 1\" bk",10,"db",null,0]
["Vízszűrő betét 10 mikronos ",40,"db",null,0]
["Laguna WC tartály",5,"db",null,0]
["Laguna wc tartály nyomógomb",5,"db",null,0]
["mosdószifon leeresztőszelep nélkül 32 mm-es elfolyással",5,"db",null,0]
["egymedencés mosogatószifon leeresztőszelep nélkül 40 mm elfolyással",5,"db",null,0]
["Kétmedencés mosogatószifon leeresztőszelep nélkül 40 mm elfolyással",5,"db",null,0]
["900x1000mm-es 3 rétegű lapradiátor",3,"db",null,0]
["1/2\"-os radiátor szelep egyenes",3,"db",null,0]
["1/2\"-os torló szelep egyenes",3,"db",null,0]
["1/2\"/20-as 5 rétegű egyenes csatlakozó külső menetes",6,"db",null,0]
["1/2\"/20-as 5 rétegű egyenes csatlakozó belső menetes",6,"db",null,0]
["20-as 5 ötrétegű cső ",50,"m",null,0]
["Sünkefe 152mm-es ",100,"db",null,0]
["Lepke csiszoló",25,"db",null,0]
["Zuhanyfüggöny karika ",50,"db",null,0]
["csőmenet tömítő zsinór",15,"db",null,0]
["Perlátor",30,"db",null,0]
["17MM LYUK:D=6 HILTI SZALAG (10FM)",10,"db",null,0]
["összesen",null,null,null,{"$f":"SUM(E2:E43)","v":0}]

{"sheet":"4.RK.","index":3,"n_rows":1,"n_cols":2,"rows_kept":1,"cut":false,"hidden":false,"merged":[]}
["50m2 3mm-es táblás üveg ","Egységár (nettó)"]